bitfinex-derivatives/quotes_SOLF0:USTF0_20250816
["timestamp","ask_amount","ask_price","bid_price","bid_amount"]
[1755346201617,2.94,185.8,185.71,3.16]
[1755346201814,7.17057688,185.79,185.74,3.16]
[1755346202016,7.17057688,185.78,185.74,3.16]
[1755346202319,2.94,185.8,185.74,3.16]
[1755346202519,2.94,185.78,185.74,3.16]
[1755346202715,2.94,185.8,185.74,3.16]
[1755346202918,112.51136155,185.84,185.77,3.16]
[1755346203108,2.94,185.82,185.77,3.16]
[1755346203313,4.23088825,185.81,185.78,3.16]
[1755346203512,2.94,185.79,185.78,3.16]
[1755346204019,2.94,185.79,185.73,2.91260799]
[1755346204218,2.94,185.79,185.73,3.16]
[1755346204418,4.22768717,185.78,185.7,2.91260799]
[1755346204716,7.36458527,185.83,185.71,8.5408]
[1755346204915,2.94,185.79,185.74,3.16]
[1755346205111,116.96333883,185.84,185.74,3.16]
[1755346205419,2.94,185.82,185.72,3.16]
[1755346205625,2.94,185.8,185.72,3.16]
[1755346205825,2.94,185.78,185.72,3.16]
[1755346209820,2.94,185.76,185.7,3.16]
[1755346210119,2.94,185.74,185.71,3.16]
[1755346210315,2.94,185.74,185.66,2.91260799]
[1755346210510,2.94,185.74,185.7,3.16]
[1755346211223,2.94,185.74,185.71,3.16]
[1755346212325,2.94,185.73,185.72,3.16]
[1755346213021,2.94,185.78,185.72,3.16]
[1755346213221,2.94,185.76,185.72,3.16]
[1755346213418,2.94,185.78,185.72,3.16]
[1755346213623,2.94,185.76,185.72,3.16]
[1755346213821,133.26,185.79,185.72,3.16]
[1755346214122,4.23093323,185.78,185.74,3.16]
[1755346214324,2.94,185.79,185.74,3.16]
[1755346214515,4.45197728,185.82,185.74,3.16]
[1755346214516,7.17202339,185.78,185.74,3.16]
[1755346214716,2.94,185.78,185.74,3.16]
[1755346215112,2.94,185.77,185.74,3.16]
[1755346215720,4.45197728,185.82,185.75,3.16]
[1755346215916,2.94,185.8,185.75,3.16]
[1755346216117,2.94,185.78,185.75,3.16]
[1755346216313,2.94,185.76,185.75,3.16]
[1755346216712,4.45197728,185.81,185.75,3.16]
[1755346216918,2.94,185.79,185.75,3.16]
[1755346217125,7.17306681,185.78,185.75,3.16]
[1755346217413,2.94,185.78,185.75,3.16]
[1755346218028,2.94,185.8,185.75,3.16]
[1755346218223,7.17431065,185.79,185.75,3.16]
[1755346218420,4.23431065,185.78,185.75,3.16]
[1755346218727,7.17431065,185.78,185.72,2.91260799]
[1755346218919,2.94,185.77,185.73,2.94]
[1755346219318,2.94,185.77,185.73,8.3204]
[1755346219524,2.94,185.81,185.74,2.94]
[1755346219721,4.23400362,185.8,185.74,2.94]
[1755346219923,2.94,185.78,185.74,2.94]
[1755346220923,2.94,185.77,185.74,2.94]
[1755346221631,2.94,185.81,185.74,2.94]
[1755346221826,4.23369658,185.8,185.74,2.94]
[1755346222025,2.94,185.78,185.74,2.94]
[1755346222226,2.94,185.81,185.74,2.94]
[1755346222423,4.23358922,185.8,185.75,2.91260799]
[1755346222624,2.94,185.82,185.77,5.3792]
[1755346222821,4.23537059,185.81,185.78,5.85260799]
[1755346223026,2.94,185.85,185.79,2.94]
[1755346223227,2.94,185.83,185.79,2.94]
[1755346223423,4.23544066,185.82,185.79,2.94]
[1755346223633,2.94,185.83,185.79,2.94]
[1755346224728,2.94,185.84,185.8,2.94]
[1755346224928,7.17468114,185.83,185.8,2.94]
[1755346225127,2.94,185.83,185.8,2.94]
[1755346226532,2.94,185.83,185.8,8.3184]
[1755346226733,2.94,185.83,185.81,2.94]
[1755346226927,2.94,185.83,185.82,2.94]
[1755346227122,2.94,185.88,185.82,2.94]
[1755346227336,4.23266993,185.87,185.82,2.94]
[1755346227541,4.23266993,185.86,185.82,8.3176]
[1755346227728,4.23266993,185.86,185.83,2.94]
[1755346228033,2.94,185.86,185.83,2.94]
[1755346229030,2.94,185.86,185.84,2.94]
[1755346229837,4.45728512,185.92,185.84,5.85260799]
[1755346229838,2.94,185.89,185.84,5.85260799]
[1755346230037,2.94,185.93,185.87,2.91260799]
[1755346230226,2.94,185.91,185.88,2.94]
[1755346230430,133.2,185.94,185.89,2.94]
[1755346230637,2.94,185.92,185.9,2.94]
[1755346230829,133.2,185.94,185.9,2.94]
[1755346230830,7.16860612,185.91,185.9,2.94]
[1755346231231,2.94,185.91,185.9,2.94]
[1755346235632,133.2,185.94,185.91,2.94]
[1755346235835,7.16592626,185.93,185.92,2.94]
[1755346236228,2.94,185.98,185.92,2.94]
[1755346236430,2.94,185.96,185.91,2.94]
[1755346236835,2.94,185.96,185.9,2.91260799]
[1755346237037,2.94,185.96,185.9,2.94]
[1755346237236,2.94,185.96,185.91,0.03905871]
[1755346237442,2.94,185.96,185.91,2.97905871]
[1755346238238,7.36989311,186.0,185.91,0.03905871]
[1755346238239,2.94,185.94,185.91,0.03905871]
[1755346238543,2.94,185.92,185.91,0.03905871]
[1755346240541,2.94,185.91,185.85,2.94]
[1755346240733,4.21807178,185.9,185.85,2.94]
[1755346240938,2.94,185.89,185.85,2.94]
[1755346241430,2.94,185.89,185.82,2.94]
[1755346241836,0.04069881,185.87,185.82,2.94]
[1755346242032,0.04069881,185.87,185.81,2.91260799]
[1755346242237,2.94,185.85,185.84,2.94]
[1755346242941,2.94,185.85,185.82,2.94]
[1755346243143,0.04069881,185.87,185.78,8.29150799]
[1755346243446,2.94,185.86,185.79,2.94]
[1755346249843,2.94,185.86,185.79,8.3187]
[1755346250048,2.94,185.86,185.8,3.05]
[1755346250747,0.04069881,185.87,185.81,2.91260799]
[1755346250949,0.04069881,185.87,185.82,3.05]
[1755346251149,2.98069881,185.87,185.82,3.05]
[1755346251443,2.98069881,185.87,185.84,5.96260799]
[1755346251444,0.04069881,185.87,185.84,5.96260799]
[1755346251646,0.04069881,185.87,185.85,3.05]
[1755346251847,2.94,185.91,185.87,5.3764]
[1755346252041,2.94,185.91,185.88,3.05]
[1755346252242,0.03966074,185.88,185.87,5.3764]
[1755346252644,2.94,185.9,185.87,5.3764]
[1755346252847,2.91260799,185.96,185.88,3.05]
[1755346253046,2.9782703,185.89,185.88,3.05]
[1755346253248,2.94,185.91,185.88,3.05]
[1755346253546,2.94,185.93,185.88,8.426]
[1755346253746,2.94,185.93,185.79,46.91260799]
[1755346253747,0.03545431,185.9,185.89,3.05]
[1755346254047,2.94,185.95,185.89,3.05]
[1755346254345,0.03866664,185.91,185.9,5.3754]
[1755346254545,2.97866664,185.91,185.9,3.05]
[1755346254746,2.94,185.91,185.9,3.05]
[1755346255044,0.03665419,185.92,185.9,3.05]
[1755346255440,0.03665419,185.92,185.9,8.4254]
[1755346255643,0.03665419,185.92,185.9,3.05]
[1755346256951,0.03665419,185.92,185.9,5.96260799]
[1755346257151,0.03665419,185.92,185.91,3.05]
[1755346257857,2.97665419,185.92,185.91,3.05]
[1755346258150,0.03665419,185.92,185.9,2.91260799]
[1755346258349,0.03665419,185.92,185.91,3.05]
[1755346258854,0.03665419,185.92,185.91,8.4252]
[1755346259546,0.03665419,185.92,185.91,3.05]
[1755346260255,2.97665419,185.92,185.91,3.05]
[1755346263354,2.94,185.91,185.87,2.91260799]
[1755346263553,0.03665419,185.92,185.88,3.05]
[1755346263855,2.97665419,185.92,185.88,3.05]
[1755346264555,2.94,185.91,185.88,3.05]
[1755346264950,2.94,185.91,185.87,2.91260799]
[1755346264951,0.03665419,185.92,185.89,3.05]
[1755346265150,2.94,185.91,185.9,3.05]
[1755346266456,0.03665419,185.92,185.88,3.05]
[1755346266962,2.94,185.9,185.88,3.05]
[1755346267151,2.97665419,185.92,185.88,3.05]
[1755346267455,2.94,185.91,185.88,3.05]
[1755346267860,0.03665419,185.92,185.88,3.05]
[1755346268853,0.03665419,185.92,185.9,2.91260799]
[1755346269057,0.03665419,185.92,185.91,3.05]
[1755346269253,365.83963036,185.99,185.9,2.91260799]
[1755346269458,2.94,185.93,185.92,3.05]
[1755346269759,2.97416149,185.93,185.92,3.05]
[1755346269959,2.97416149,185.93,185.9,3.05]
[1755346270456,2.97416149,185.93,185.89,3.05]
[1755346270654,2.94,185.91,185.9,3.05]
[1755346271959,2.97416149,185.93,185.9,3.05]
[1755346272157,0.03416149,185.93,185.86,2.91260799]
[1755346272354,2.97416149,185.93,185.87,3.05]
[1755346272748,2.97416149,185.93,185.9,3.05]
[1755346272749,2.94,185.92,185.9,3.05]
[1755346272953,0.03416149,185.93,185.9,3.05]
[1755346273158,2.94,185.91,185.9,3.05]
[1755346273965,0.03635245,185.93,185.9,3.05]
[1755346274154,2.94,185.92,185.91,3.05]
[1755346274555,2.97635245,185.93,185.89,2.91260799]
[1755346274761,2.97635245,185.93,185.92,3.05]
[1755346277154,0.03635245,185.93,185.89,2.91260799]
[1755346277357,2.94,185.92,185.89,2.91260799]
[1755346277566,2.94,185.92,185.91,3.05]
[1755346278763,2.96,185.92,185.9,3.03]
[1755346278973,2.96,185.91,185.9,3.03]
[1755346281571,2.96,185.91,185.88,2.91260799]
[1755346281871,2.96,185.91,185.89,3.03]
[1755346282068,2.96,185.9,185.89,3.03]
[1755346282967,2.96,185.9,185.83,3.03]
[1755346283168,2.96,185.88,185.8,3.03]
[1755346283661,0.03765822,185.86,185.8,3.03]
[1755346283866,2.96,185.85,185.78,3.03]
[1755346287877,2.96,185.85,185.78,8.409]
[1755346288072,2.96,185.85,185.79,3.03]
[1755346297677,2.96,185.85,185.76,8.29210799]
[1755346297882,2.96,185.85,185.77,3.03]
[1755346300687,2.96,185.85,185.77,5.3792]
[1755346300881,2.96,185.85,185.78,3.03]
[1755346301885,4.23493524,185.84,185.78,3.03]
[1755346302184,4.23470122,185.83,185.73,3.03]
[1755346302381,2.96,185.81,185.73,3.03]
[1755346302984,0.04138452,185.79,185.73,3.03]
[1755346303286,2.96,185.78,185.73,3.03]
[1755346304590,0.04138452,185.79,185.69,2.91260799]
[1755346304789,2.96,185.77,185.7,3.03]
[1755346305083,2.96,185.75,185.7,3.03]
[1755346305389,2.96,185.75,185.67,3.03]
[1755346305588,2.96,185.75,185.68,5.3819]
[1755346305790,0.03584992,185.73,185.69,3.03]
[1755346305990,2.99584992,185.73,185.69,3.03]
[1755346306981,0.03584992,185.73,185.69,5.94260799]
[1755346307187,0.03584992,185.73,185.72,5.94260799]
[1755346307689,2.96,185.78,185.72,5.94260799]
[1755346307892,0.03982715,185.74,185.73,3.03]
[1755346308581,3.01982715,185.74,185.73,3.03]
[1755346310189,0.03982715,185.74,185.73,3.03]
[1755346310689,0.03982715,185.74,185.73,8.4104]
[1755346311492,2.98,185.84,185.72,2.91260799]
[1755346311690,4.23561614,185.83,185.77,3.05]
[1755346311887,2.98,185.86,185.77,3.05]
[1755346312091,2.98,185.84,185.77,3.05]
[1755346312395,2.98,185.82,185.77,3.05]
[1755346312593,2.98,185.81,185.77,5.3792]
[1755346312793,2.98,185.81,185.78,3.0842307]
[1755346313094,2.98,185.8,185.79,3.05]
[1755346314094,2.98,185.86,185.78,0.0342307]
[1755346314295,4.23620568,185.85,185.78,0.0342307]
[1755346314496,7.21620568,185.84,185.78,0.0342307]
[1755346314694,2.98,185.82,185.78,3.0842307]
[1755346315296,2.98,185.82,185.79,3.05]
[1755346317394,2.98,185.82,185.78,0.0342307]
[1755346317697,2.98,185.82,185.78,3.0842307]
[1755346318300,2.98,185.82,185.79,3.05]
[1755346319191,4.23998756,185.81,185.79,3.05]
[1755346319398,2.98,185.79,185.78,3.0842307]
[1755346319590,2.98,185.84,185.78,3.0842307]
[1755346319794,2.98,185.82,185.78,0.0342307]
[1755346319999,2.98,185.82,185.8,3.05]
[1755346320294,7.22238067,185.81,185.8,3.05]
[1755346320488,2.98,185.84,185.78,0.0342307]
[1755346320689,4.24264875,185.83,185.79,3.05]
[1755346320897,2.98,185.89,185.82,2.91260799]
[1755346321101,4.2434903,185.88,185.83,3.05]
[1755346321402,2.98,185.85,185.84,3.05]
[1755346321601,2.98,185.85,185.84,3.08859764]
[1755346322495,2.98,185.91,185.84,3.08859764]
[1755346322701,4.24786656,185.9,185.86,3.05]
[1755346322903,2.98,185.91,185.86,3.05]
[1755346323503,4.24945985,185.9,185.86,3.05]
[1755346323701,2.98,185.91,185.86,3.05]
[1755346323898,4.24991133,185.9,185.86,3.05]
[1755346324201,118.17212968,185.93,185.86,3.05]
[1755346324396,4.24996618,185.92,185.88,2.91260799]
[1755346324596,118.17212968,185.93,185.89,3.05]
[1755346324796,2.98,185.91,185.85,3.05]
[1755346325201,2.98,185.91,185.89,0.03505071]
[1755346325499,2.98,185.92,185.89,0.03505071]
[1755346325699,2.98,185.92,185.89,3.08505071]
[1755346325900,2.98,185.91,185.9,3.05]
[1755346327599,115.19212968,185.93,185.9,3.05]
[1755346327600,118.17212968,185.93,185.9,3.05]
[1755346327903,4.2529386,185.92,185.9,3.05]
[1755346328106,2.98,185.93,185.9,3.05]
[1755346328299,4.43963036,185.96,185.89,0.03505071]
[1755346328300,7.2329386,185.92,185.89,0.03505071]
[1755346328503,2.98,185.92,185.91,3.05]
[1755346328809,2.98,185.91,185.9,3.05]
[1755346329302,2.98,185.91,185.89,0.03505071]
[1755346329507,2.98,185.9,185.89,3.08505071]
[1755346331705,2.98,185.96,185.89,3.08505071]
[1755346332009,2.98,185.94,185.89,3.08505071]
[1755346332207,4.24842737,185.93,185.9,3.05]
[1755346332409,2.98,185.96,185.9,3.05]
[1755346332609,2.98,185.94,185.9,3.05]
[1755346332810,2.98,185.92,185.9,3.05]
[1755346333014,2.98,185.91,185.9,3.05]
[1755346335112,2.98,185.97,185.9,3.05]
[1755346335405,2.98,185.95,185.9,3.05]
[1755346335612,2.98,185.93,185.89,0.03505071]
[1755346335910,2.98,185.92,185.91,3.05]
[1755346336807,2.98,185.97,185.91,3.05]
[1755346337012,2.98,185.95,185.91,3.05]
[1755346337509,2.98,185.99,185.91,3.05]
[1755346337708,2.98,185.97,185.91,3.09017359]
[1755346341116,3.12,185.95,185.91,3.09017359]
[1755346341313,3.12,185.95,185.91,0.04017359]
[1755346342116,3.12,185.95,185.91,2.91017359]
[1755346344415,3.12,185.95,185.91,0.04017359]
[1755346347412,3.12,185.95,185.91,2.91017359]
[1755346347617,3.12,185.95,185.91,0.04017359]
[1755346347817,3.12,185.95,185.92,2.87]
[1755346348519,4.22435423,185.94,185.92,2.87]
[1755346348721,3.12,185.95,185.92,2.87]
[1755346350522,3.12,185.93,185.92,2.87]
[1755346352417,7.35066766,185.93,185.92,2.87]
[1755346353124,3.12,185.92,185.91,0.04017359]
[1755346353321,3.12,185.92,185.91,2.91017359]
[1755346354525,4.44572983,185.97,185.91,2.91017359]
[1755346354721,3.12,185.93,185.91,2.91017359]
[1755346355420,4.23552444,185.92,185.91,2.91017359]
[1755346355623,7.35552444,185.92,185.91,2.91017359]
[1755346356516,7.35552444,185.92,185.91,0.04017359]
[1755346356727,7.35552444,185.92,185.91,2.91017359]
[1755346357521,7.35552444,185.92,185.91,0.04017359]
[1755346357918,4.23552444,185.92,185.82,2.91260799]
[1755346358123,4.23552444,185.91,185.83,2.87]
[1755346358328,3.12,185.89,185.83,2.87]
[1755346358527,4.23552444,185.88,185.83,2.87]
[1755346359428,0.04101119,185.87,185.83,2.87]
[1755346359824,0.04101119,185.87,185.83,8.2475]
[1755346360128,0.04101119,185.87,185.84,2.87]
[1755346361125,0.04101119,185.87,185.84,8.2473]
[1755346361430,0.04101119,185.87,185.85,2.87]
[1755346361632,4.44572983,185.93,185.86,2.87]
[1755346361931,4.24484648,185.92,185.86,2.87]
[1755346362124,4.24484648,185.91,185.86,2.87]
[1755346362327,4.24484648,185.9,185.86,2.87]
[1755346362627,4.24484648,185.89,185.86,2.87]
[1755346362930,4.24484648,185.88,185.86,2.87]
[1755346363127,3.12,185.9,185.86,2.87]
[1755346363430,7.36764507,185.89,185.86,2.87]
[1755346363631,4.24764507,185.88,185.86,2.87]
[1755346363834,3.12,185.89,185.86,2.87]
[1755346364024,7.37035221,185.88,185.86,2.87]
[1755346364227,4.44572983,185.92,185.86,2.87]
[1755346364532,4.44572983,185.92,185.85,0.03651243]
[1755346364533,4.24573413,185.91,185.9,2.87]
[1755346364926,7.36573413,185.91,185.9,2.87]
[1755346367033,4.24573413,185.91,185.9,2.87]
[1755346367929,3.12,185.96,185.9,2.87]
[1755346368238,3.12,185.96,185.93,2.87]
[1755346368633,4.44572983,185.97,185.93,2.87]
[1755346368834,7.47572983,185.97,185.93,2.87]
[1755346369138,3.03,185.96,185.93,2.87]
[1755346369338,3.03,185.96,185.93,2.90405602]
[1755346372838,3.03,185.97,185.93,2.90405602]
[1755346373736,4.44572983,185.99,185.94,2.91]
[1755346374032,3.03,185.96,185.94,2.91]
[1755346374437,3.03,185.96,185.95,2.91]
[1755346374637,3.03,185.98,185.95,2.91]
[1755346376239,3.03,185.97,185.95,2.91]
[1755346376740,4.44572983,186.0,185.95,2.91]
[1755346376936,3.03,185.98,185.95,2.91]
[1755346377537,3.03,185.99,185.95,2.91]
[1755346377940,7.47572983,185.99,185.93,2.94405602]
[1755346378239,3.03,185.98,185.94,2.91]
[1755346378540,3.03,185.98,185.93,0.03405602]
[1755346378742,3.03,185.98,185.94,2.91]
[1755346379943,4.2304554,185.97,185.94,2.91]
[1755346380144,4.2304554,185.96,185.94,8.2843]
[1755346380338,4.44572983,186.0,185.94,2.91]
[1755346380546,3.03,185.96,185.94,2.91]
[1755346381145,3.03,185.95,185.93,0.03405602]
[1755346381746,4.44572983,186.0,185.94,2.91]
[1755346381945,3.03,185.98,185.94,2.91]
[1755346382146,4.22976632,185.97,185.94,2.91]
[1755346382342,7.25976632,185.96,185.94,2.91]
[1755346382538,4.44572983,186.01,185.93,0.03405602]
[1755346382743,7.47572983,185.98,185.93,0.03405602]
[1755346382943,3.03,185.96,185.93,0.03405602]
[1755346383142,3.03,185.94,185.93,0.03405602]
[1755346383344,4.22884788,185.94,185.93,2.94405602]
[1755346385243,3.03,185.99,185.93,2.94405602]
[1755346385441,4.22746573,185.98,185.93,5.85666401]
[1755346385642,4.22746573,185.97,185.93,2.94666401]
[1755346385841,3.03,186.0,185.94,2.91]
[1755346386048,4.22766619,185.99,185.94,2.91]
[1755346386244,4.22766619,185.98,185.94,2.91]
[1755346386545,138.55466747,186.04,185.97,2.91]
[1755346386546,3.03,186.01,185.97,2.91]
[1755346386745,3.03,186.05,185.99,5.82260799]
[1755346386939,4.22838118,186.04,185.99,2.91260799]
[1755346387146,4.22838118,186.04,186.02,5.3721]
[1755346387147,4.22838118,186.03,186.02,5.3721]
[1755346387344,3.03,186.04,186.03,2.91]
[1755346387644,4.22562078,186.07,186.02,5.3721]
[1755346387849,3.03,186.05,186.04,2.91]
[1755346388045,7.25562078,186.05,186.04,2.91]
[1755346390045,3.03,186.05,186.04,2.91]
[1755346392453,3.03,186.05,186.03,0.03697538]
[1755346400362,3.03,186.05,186.03,2.96697538]
[1755346400564,2.86,186.04,186.03,2.96697538]
[1755346402662,2.86,186.04,186.03,0.03697538]
[1755346402859,2.86,186.04,185.9,44.0]
[1755346403066,4.19866929,186.03,185.97,2.93]
[1755346403365,2.86,186.01,185.97,2.93]
[1755346403762,2.86,186.01,185.94,2.93]
[1755346404260,0.04103861,185.99,185.94,2.93]
[1755346404468,2.86,185.98,185.94,2.93]
[1755346404964,0.04103861,185.99,185.94,2.93]
[1755346404965,2.86,185.97,185.94,2.93]
[1755346405163,0.04103861,185.99,185.94,2.93]
[1755346405363,2.86,185.98,185.92,2.93]
[1755346406571,2.86,185.96,185.89,2.93]
[1755346407460,2.86,185.93,185.89,2.93]
[1755346407968,0.03917035,185.94,185.89,2.93]
[1755346408268,2.86,185.92,185.89,2.93]
[1755346408765,2.86,185.93,185.87,2.93]
[1755346409157,0.03917035,185.94,185.87,2.93]
[1755346409356,7.06427426,185.93,185.87,2.93]
[1755346409567,2.86,185.93,185.87,2.93]
[1755346409769,0.03917035,185.94,185.88,2.91260799]
[1755346409969,0.03917035,185.94,185.92,2.93]
[1755346410463,2.86,185.98,185.92,2.93]
[1755346410657,0.03840757,185.95,185.92,2.93]
[1755346410861,0.03840757,185.95,185.94,2.93]
[1755346413376,2.89840757,185.95,185.94,2.93]
[1755346414067,2.89840757,185.95,185.91,2.91260799]
[1755346414268,2.86,185.94,185.93,2.93]
[1755346415974,0.03840757,185.95,185.93,2.93]
[1755346418866,0.03840757,185.95,185.94,5.84260799]
[1755346419073,135.38,186.02,185.95,2.93]
[1755346419280,7.06891782,186.01,185.95,2.93]
[1755346419473,7.06891782,186.0,185.95,2.93]
[1755346419680,4.20891782,185.99,185.95,2.93]
[1755346419881,2.86,186.0,185.96,2.93]
[1755346420077,7.06862833,185.99,185.96,2.93]
[1755346420279,4.45531314,186.04,185.96,2.93]
[1755346420480,2.86,186.02,185.96,2.93]
[1755346420682,4.20867308,186.01,185.96,2.93]
[1755346420878,2.86,185.99,185.96,2.93]
[1755346421082,2.86,185.99,185.98,2.93]
[1755346421482,7.06897168,185.99,185.98,2.93]
[1755346422183,7.06840574,185.99,185.98,2.93]
[1755346424800,4.20840574,185.99,185.97,0.04120604]
[1755346424976,2.86,185.98,185.97,0.04120604]
[1755346426380,7.06733285,185.98,185.97,0.04120604]
[1755346426580,2.86,185.97,185.9,2.93]
[1755346426780,2.86,185.95,185.9,2.93]
[1755346426990,2.86,185.93,185.9,2.93]
[1755346427184,2.86,185.92,185.91,2.93]
[1755346428585,0.03893189,185.93,185.91,2.93]
[1755346429090,3.12893189,185.93,185.92,2.94]
[1755346429890,0.03893189,185.93,185.92,2.94]
[1755346430290,0.03893189,185.93,185.92,5.85260799]
[1755346431386,0.03893189,185.93,185.92,2.94]
[1755346437105,3.12893189,185.93,185.92,2.94]
[1755346438105,0.03893189,185.93,185.92,2.94]
[1755346440398,3.12893189,185.93,185.92,2.94]
[1755346441004,3.12893189,185.93,185.89,2.91260799]
[1755346441310,0.03893189,185.93,185.91,2.94]
[1755346441504,0.03893189,185.93,185.92,8.28750799]
[1755346441708,0.03893189,185.93,185.92,11.22750799]
[1755346442908,3.09,186.01,185.96,2.94]
[1755346443117,3.09,185.99,185.96,5.85260799]
[1755346443406,3.09,186.02,185.99,2.94]
[1755346443610,7.30694722,186.01,185.99,2.94]
[1755346443802,3.09,186.01,185.99,2.94]
[1755346444004,3.09,186.0,185.97,2.94]
[1755346444205,3.09,186.0,185.98,0.03934026]
[1755346444408,3.09,186.0,185.99,2.94]
[1755346444603,4.4643294,186.06,185.99,2.94]
[1755346444910,4.21842414,186.05,185.99,2.94]
[1755346445112,7.30842414,186.04,185.99,2.94]
[1755346445312,4.21842414,186.03,185.99,2.94]
[1755346445502,3.09,186.04,185.99,2.94]
[1755346445703,3.09,186.1,186.04,5.3714]
[1755346445905,3.09,186.08,186.05,5.85260799]
[1755346446208,3.09,186.08,186.07,2.94]
[1755346446605,3.09,186.08,186.05,5.89390437]
[1755346446814,5.39988872,186.13,186.06,2.94]
[1755346447110,3.09,186.07,186.06,2.94]
[1755346447312,3.09,186.07,186.05,0.04129638]
[1755346447503,3.09,186.11,186.05,2.98129638]
[1755346447701,4.21359918,186.1,186.05,0.04129638]
[1755346447902,3.09,186.08,186.05,2.98129638]
[1755346448114,3.09,186.08,186.05,0.04129638]
[1755346448412,3.09,186.11,186.05,0.04129638]
[1755346448615,4.21124358,186.1,186.05,0.04129638]
[1755346448912,7.30124358,186.09,186.08,2.94]
[1755346449213,3.09,186.09,186.08,2.94]
[1755346450210,3.09,186.08,186.05,2.95390437]
[1755346450513,3.09,186.08,186.07,2.94]
[1755346451408,3.09,186.08,186.05,5.89390437]
[1755346452316,3.09,186.13,186.06,2.94]
[1755346452514,3.09,186.11,186.06,2.94]
[1755346452713,3.09,186.11,186.07,2.94]
[1755346452914,3.09,186.11,186.08,2.94]
[1755346453414,3.09,186.11,186.07,0.03676916]
[1755346453415,3.09,186.11,186.07,2.97676916]
[1755346454716,3.09,186.11,186.07,0.03676916]
[1755346454916,3.09,186.09,186.07,0.03676916]
[1755346458715,7.05887017,186.08,186.07,0.03676916]
[1755346461320,2.88,186.08,186.07,0.03676916]
[1755346461523,2.88,186.08,186.07,3.14676916]
[1755346461723,2.88,186.13,186.07,3.14676916]
[1755346461920,2.88,186.11,186.07,3.14676916]
[1755346462224,2.88,186.09,186.07,3.14676916]
[1755346462617,2.88,186.09,186.08,3.11]
[1755346463727,2.88,186.13,186.07,0.03676916]
[1755346463925,2.88,186.11,186.07,0.03676916]
[1755346464126,4.17840153,186.1,186.07,0.03676916]
[1755346464324,2.88,186.09,186.07,0.03676916]
[1755346464522,7.37693739,186.14,186.07,0.03676916]
[1755346464720,2.88,186.1,186.07,0.03676916]
[1755346464922,2.88,186.08,186.07,0.03676916]
[1755346465225,7.05890933,186.08,186.07,0.03676916]
[1755346474931,4.17890933,186.08,186.07,0.03676916]
[1755346475124,2.88,186.08,186.07,3.14676916]
[1755346475322,7.05890933,186.08,186.07,0.03676916]
[1755346479336,14.43584672,186.08,186.07,0.03676916]
[1755346480531,14.43584672,186.08,185.96,2.91260799]
[1755346480736,14.43584672,186.08,185.9,408.15260799]
[1755346480737,2.88,186.04,186.01,3.11]
[1755346480937,2.88,186.02,186.0,3.11]
[1755346481137,7.05890933,186.01,186.0,3.11]
[1755346482140,4.17890933,186.01,185.93,3.11]
[1755346482332,7.05890933,186.0,185.93,3.11]
[1755346482542,4.17890933,185.99,185.93,3.11]